bitfinex-derivatives/quotes_SOLF0:USTF0_20250520
["timestamp","ask_amount","ask_price","bid_price","bid_amount"]
[1747778882658,0.04520065,167.4,167.38,5.972]
[1747778884759,0.04520065,167.4,167.38,6.41546681]
[1747778884957,4.154,167.46,167.38,6.41546681]
[1747778885154,100.93602385,167.53,167.41,6.41546681]
[1747778885353,2.0116,167.51,167.42,93.58]
[1747778885659,5.9679,167.5,167.46,5.9692]
[1747778885956,6.01278768,167.5,167.46,6.00907389]
[1747778886548,0.04488768,167.5,167.46,0.03987389]
[1747778886757,0.04488768,167.5,167.42,93.58]
[1747778887247,5.97,167.44,167.42,93.58]
[1747778888960,5.97,167.44,167.42,99.5506]
[1747778890261,5.97,167.44,167.42,93.58]
[1747778891364,6.01044458,167.45,167.42,99.5506]
[1747778892265,5.97,167.44,167.42,99.5506]
[1747778893170,5.97,167.44,167.42,93.58]
[1747778893855,5.9703,167.43,167.42,93.58]
[1747778894269,5.9708,167.42,167.39,99.5516]
[1747778894566,0.04252624,167.42,167.39,93.58]
[1747778895156,0.04252624,167.42,167.34,93.58]
[1747778895560,5.9716,167.4,167.36,5.9726]
[1747778895761,5.9716,167.4,167.34,93.58]
[1747778896063,0.04252624,167.42,167.34,93.58]
[1747778896869,6.01332624,167.42,167.34,93.58]
[1747778897769,6.01332624,167.42,167.39,5.9717]
[1747778899372,0.04252624,167.42,167.34,93.58]
[1747778899967,0.04252624,167.42,167.35,6.41546681]
[1747778900174,0.04252624,167.42,167.41,5.971]
[1747778901975,0.04252624,167.42,167.4,5.9713]
[1747778902272,0.04252624,167.42,167.39,92.88]
[1747778903273,0.04252624,167.42,167.4,5.9713]
[1747778903774,0.04252624,167.42,167.39,98.8515]
[1747778905077,6.01312624,167.42,167.39,98.8515]
[1747778906468,0.04252624,167.42,167.39,98.8515]
[1747778906679,0.04252624,167.42,167.4,5.9713]
[1747778907974,6.01312624,167.42,167.39,98.8515]
[1747778908281,0.04252624,167.42,167.39,92.88]
[1747778908479,5.9713,167.4,167.39,92.88]
[1747778908664,0.04252624,167.42,167.36,92.88]
[1747778908971,5.9723,167.38,167.36,92.88]
[1747778910878,5.9724,167.37,167.35,5.973]
[1747778911072,0.0405364,167.38,167.34,6.41546681]
[1747778912278,10.0612,167.44,167.4,5.971]
[1747778913181,4.13513382,167.44,167.4,0.04433666]
[1747778913870,4.13513382,167.44,167.41,5.9708]
[1747778914381,10.10523382,167.44,167.4,6.01553666]
[1747778914680,4.13513382,167.44,167.4,0.04433666]
[1747778914880,5.9709,167.42,167.4,0.04433666]
[1747778915883,5.9704,167.43,167.4,0.04433666]
[1747778916783,10.10513382,167.44,167.4,0.04433666]
[1747778917584,10.10513382,167.44,167.41,5.9708]
[1747778919488,10.10513382,167.44,167.4,6.01553666]
[1747778920283,5.9706,167.43,167.4,6.01553666]
[1747778926283,4.13513382,167.44,167.4,0.04433666]
[1747778926990,4.13513382,167.44,167.42,5.9704]
[1747778927496,4.13513382,167.44,167.4,0.04433666]
[1747778927691,4.13513382,167.44,167.43,5.9703]
[1747778931589,0.04393382,167.44,167.43,5.9703]
[1747778942298,7.35602385,167.53,167.41,92.18]
[1747778942499,2.76747585,167.52,167.43,6.41765758]
[1747778942697,2.76747585,167.51,167.5,5.9675]
[1747778942886,2.76747585,167.51,167.47,92.18]
[1747778943092,0.04163507,167.51,167.5,5.9674]
[1747778951306,0.04163507,167.51,167.49,5.9681]
[1747778951605,0.04163507,167.51,167.48,92.18]
[1747778952696,0.04163507,167.51,167.47,0.04357355]
[1747778953206,5.9685,167.48,167.47,0.04357355]
[1747778953806,4.03,167.5,167.47,0.04357355]
[1747778954111,5.9683,167.49,167.47,0.04357355]
[1747778955005,5.9685,167.48,167.47,0.04357355]
[1747778956301,5.9683,167.49,167.47,0.04357355]
[1747778956710,4.03,167.5,167.47,6.01217355]
[1747778956905,6.00923507,167.51,167.47,0.04357355]
[1747778957106,0.04163507,167.51,167.47,0.04357355]
[1747778957305,0.04163507,167.51,167.48,5.9682]
[1747778957911,0.04163507,167.51,167.47,0.04357355]
[1747778958207,0.04163507,167.51,167.49,5.9681]
[1747778958509,0.04163507,167.51,167.49,98.1081]
[1747778959517,0.04163507,167.51,167.5,5.9678]
[1747778960413,0.04163507,167.51,167.49,98.108]
[1747778961422,0.04163507,167.51,167.5,5.9678]
[1747778962420,3.8968,167.57,167.49,98.55765758]
[1747778962628,3.8968,167.57,167.49,92.14]
[1747778962922,3.8968,167.57,167.54,5.966]
[1747778963117,3.8968,167.57,167.54,98.086]
[1747778963425,3.93443785,167.57,167.54,98.12442265]
[1747778963918,3.93443785,167.57,167.55,5.966]
[1747778965522,3.93443785,167.57,167.54,92.15842265]
[1747778966626,9.89983785,167.57,167.54,92.15842265]
[1747778966820,3.93443785,167.57,167.54,92.15842265]
[1747778967021,5.966,167.55,167.54,0.03842265]
[1747778967321,3.93443785,167.57,167.52,92.1]
[1747778967719,3.93443785,167.57,167.5,5.9674]
[1747778968022,3.93443785,167.57,167.51,5.9672]
[1747778968221,5.9662,167.55,167.51,5.9672]
[1747778968423,5.9662,167.55,167.51,6.00517446]
[1747778968623,3.93443785,167.57,167.51,6.00517446]
[1747778968929,5.9657,167.56,167.51,6.00517446]
[1747778969227,5.9657,167.56,167.52,5.9668]
[1747778969433,9.89993785,167.57,167.51,0.03797446]
[1747778970122,9.89993785,167.57,167.53,5.9665]
[1747778970315,3.93443785,167.57,167.51,0.03797446]
[1747778971126,3.93443785,167.57,167.53,5.9666]
[1747778971830,9.89983785,167.57,167.53,5.9666]
[1747778972132,3.93443785,167.57,167.52,5.9669]
[1747778972326,96.03443785,167.57,167.51,0.03797446]
[1747778972526,96.03443785,167.57,167.39,2.62371746]
[1747778972527,2.75136381,167.56,167.52,5.967]
[1747778972728,3.8968,167.57,167.46,92.1]
[1747778972926,9.8621,167.57,167.46,92.1]
[1747778973428,0.04095464,167.53,167.5,0.04260043]
[1747778973731,0.04095464,167.53,167.52,5.967]
[1747778974232,0.04095464,167.53,167.5,6.01020043]
[1747778974428,0.04095464,167.53,167.5,0.04260043]
[1747778974735,5.9671,167.52,167.5,0.04260043]
[1747778976232,5.9674,167.51,167.5,0.04260043]
[1747778979329,0.04095464,167.53,167.46,92.1]
[1747778979330,5.9688,167.47,167.46,92.1]
[1747778979830,92.1,167.49,167.4,1.33384382]
[1747778980034,4.77379796,167.48,167.4,1.33384382]
[1747778980235,0.0438378,167.46,167.42,0.02140495]
[1747778980438,5.9696,167.45,167.42,0.02140495]
[1747778981841,5.9701,167.44,167.42,0.02140495]
[1747778983836,5.9697,167.45,167.42,0.02140495]
[1747778984037,0.0438378,167.46,167.42,0.02140495]
[1747778984638,5.9703,167.43,167.42,0.02140495]
[1747778985430,2.0754378,167.46,167.42,0.02140495]
[1747778985634,5.97,167.44,167.42,0.02140495]
[1747778986738,5.9697,167.45,167.42,0.02140495]
[1747778990146,5.97,167.44,167.42,0.02140495]
[1747778994743,5.9697,167.45,167.42,0.02140495]
[1747778995839,5.9713,167.4,167.37,5.9723]
[1747778996044,93.34,167.45,167.34,93.34]
[1747778996441,5.9716,167.4,167.36,5.9726]
[1747778997046,6.01425351,167.4,167.36,5.9726]
[1747778998147,5.9717,167.39,167.34,93.34]
[1747778998347,0.04265351,167.4,167.34,93.34]
[1747778998544,6.01435351,167.4,167.36,5.9725]
[1747778999655,6.01435351,167.4,167.37,5.9724]
[1747779000247,0.04265351,167.4,167.34,93.34]
[1747779000642,0.04265351,167.4,167.39,5.9717]
[1747779000841,0.04265351,167.4,167.38,93.36]
[1747779001646,532.0,167.55,167.38,93.36]
[1747779001844,105.2935,167.53,167.4,6.41820849]
[1747779002052,2.74666689,167.52,167.4,6.41820849]
[1747779002255,5.9687,167.48,167.44,5.9698]
[1747779002746,6.00850371,167.48,167.44,6.00859201]
[1747779002944,0.03980371,167.48,167.44,0.03879201]
[1747779003145,2.1127,167.47,167.44,0.03879201]
[1747779003346,4.0278,167.47,167.44,0.03879201]
[1747779003545,9.9968,167.47,167.44,0.03879201]
[1747779003954,4.0278,167.47,167.44,0.03879201]
[1747779004159,4.0278,167.47,167.44,6.00849201]
[1747779005748,9.9967,167.47,167.44,6.00849201]
[1747779005949,4.0278,167.47,167.44,6.00849201]
[1747779007666,4.0278,167.47,167.45,5.9695]
[1747779008160,0.03980371,167.48,167.44,0.03879201]
[1747779008554,0.03980371,167.48,167.45,5.9695]
[1747779009163,0.03980371,167.48,167.46,5.9691]
[1747779010461,0.03980371,167.48,167.47,5.9688]
[1747779013260,93.34,167.56,167.47,6.41820849]
[1747779013467,99.3057,167.56,167.53,5.9666]
[1747779013668,99.3057,167.56,167.49,93.34]
[1747779013857,5.9657,167.56,167.49,93.34]
[1747779014571,0.04141487,167.54,167.51,6.01034687]
[1747779014959,0.04141487,167.54,167.51,0.04294687]
[1747779015562,6.00791487,167.54,167.51,0.04294687]
[1747779016868,5.9667,167.53,167.51,0.04294687]
[1747779017773,6.00791487,167.54,167.51,0.04294687]
[1747779018271,0.04141487,167.54,167.51,6.01034687]
[1747779022374,92.98,167.62,167.51,0.04294687]
[1747779022671,4.0185,167.63,167.53,6.41820849]
[1747779022869,5.9645,167.6,167.56,5.9656]
[1747779023072,4.0185,167.63,167.54,92.98]
[1747779023377,0.04399662,167.6,167.57,6.00555357]
[1747779024272,0.04399662,167.6,167.58,5.9647]
[1747779024670,0.04399662,167.6,167.57,0.04045357]
[1747779024872,0.04399662,167.6,167.59,5.9646]
[1747779026870,0.04399662,167.6,167.58,92.98]
[1747779027459,0.04399662,167.6,167.58,98.9447]
[1747779027964,0.04399662,167.6,167.58,92.98]
[1747779028762,6.00829662,167.6,167.58,92.98]
[1747779029868,0.04399662,167.6,167.58,92.98]
[1747779030671,0.04399662,167.6,167.59,5.9646]
[1747779031372,5.9619,167.67,167.63,5.9631]
[1747779031876,11.8296,167.68,167.65,5.9624]
[1747779032059,3.9322,167.68,167.62,92.96]
[1747779032265,2.0445,167.73,167.62,99.37820849]
[1747779032474,0.0399506,167.69,167.66,0.03845579]
[1747779033169,0.0399506,167.69,167.67,5.9617]
[1747779033671,0.0399506,167.69,167.66,92.97845579]
[1747779033865,0.0399506,167.69,167.66,98.94025579]
[1747779034875,6.0010506,167.69,167.66,98.94025579]
[1747779035475,6.0010506,167.69,167.66,92.97845579]
[1747779035671,5.9614,167.68,167.66,92.97845579]
[1747779038072,5.9617,167.67,167.66,92.97845579]
[1747779038675,5.9617,167.67,167.66,0.03845579]
[1747779040582,5.9628,167.64,167.63,92.92]
[1747779040879,4.1001,167.68,167.6,92.92]
[1747779041181,5.9634,167.63,167.6,92.92]
[1747779041580,6.00287413,167.63,167.6,92.96220366]
[1747779041783,0.03947413,167.63,167.6,92.96220366]
[1747779042084,0.03947413,167.63,167.61,6.41820849]
[1747779042380,2.0445,167.73,167.63,5.963]
[1747779042593,4.0971,167.73,167.64,99.33820849]
[1747779042769,8.0124,167.73,167.67,6.41820849]
[1747779042972,8.0124,167.73,167.68,92.92]
[1747779043174,0.03983662,167.72,167.69,0.04024864]
[1747779043884,5.9606,167.71,167.69,0.04024864]
[1747779045071,5.99993662,167.72,167.69,0.04024864]
[1747779045275,0.03983662,167.72,167.69,0.04024864]
[1747779045782,0.03983662,167.72,167.71,5.9603]
[1747779047085,3.9075,167.79,167.76,5.9584]
[1747779047283,3.9075,167.79,167.75,92.88]
[1747779047784,5.9568,167.81,167.75,92.88]
[1747779047983,0.04256731,167.8,167.77,6.41820849]
[1747779048488,0.04256731,167.8,167.78,5.9578]
[1747779048682,0.04256731,167.8,167.77,92.88]
[1747779049186,5.9575,167.79,167.77,92.88]
[1747779049384,5.9575,167.79,167.76,0.03987539]
[1747779049588,0.04256731,167.8,167.76,0.03987539]
[1747779049776,5.9582,167.77,167.76,0.03987539]
[1747779050090,2.1023,167.79,167.71,92.88]
[1747779050275,5.9596,167.74,167.71,92.88]
[1747779050480,1.917,167.76,167.68,92.88]
[1747779050681,94.797,167.76,167.68,92.88]
[1747779050880,0.04146946,167.74,167.7,0.0435387]
[1747779051085,0.04146946,167.74,167.66,5.962]
[1747779051786,0.04146946,167.74,167.65,98.8423]
[1747779051991,0.04146946,167.74,167.65,92.88]
[1747779052189,0.04146946,167.74,167.68,0.04383183]
[1747779052386,5.9618,167.67,167.65,92.88]
[1747779052589,5.9618,167.67,167.64,7.28780509]
[1747779052789,95.46,167.72,167.64,5.9627]
[1747779052989,5.9616,167.68,167.64,5.9627]
[1747779053292,0.04566983,167.68,167.65,5.9624]
[1747779053696,0.04566983,167.68,167.64,0.04289938]
[1747779053890,0.04566983,167.68,167.67,5.9617]
[1747779054194,5.959,167.75,167.67,95.46]
[1747779054692,5.9584,167.77,167.67,95.46]
[1747779055089,95.46,167.81,167.67,95.46]
[1747779055385,0.03847052,167.73,167.7,0.04384744]
[1747779056994,5.9603,167.71,167.7,0.04384744]
[1747779057292,95.49847052,167.73,167.64,95.46]
[1747779057484,95.46,167.73,167.64,95.46]
[1747779057687,95.46,167.73,167.61,95.46]
[1747779058195,5.9622,167.66,167.65,0.03927708]
[1747779060499,5.9634,167.63,167.59,5.9645]
[1747779061398,0.04076595,167.63,167.6,5.9642]
[1747779061797,0.04076595,167.63,167.59,0.03894495]
[1747779062001,0.04076595,167.63,167.6,5.9641]
[1747779062708,0.04076595,167.63,167.61,5.9638]
[1747779063006,0.04076595,167.63,167.59,0.03894495]
[1747779064501,0.04076595,167.63,167.62,5.9635]
[1747779064799,0.04076595,167.63,167.62,101.4435]
[1747779065004,2.0421,167.68,167.66,5.9617]
[1747779065502,2.0421,167.68,167.62,95.48]
[1747779065903,0.03886788,167.67,167.63,0.04379153]
[1747779066103,0.03886788,167.67,167.65,5.9624]
[1747779067298,0.03886788,167.67,167.66,5.9621]
[1747779068004,0.03886788,167.67,167.65,5.9624]
[1747779068197,0.03886788,167.67,167.63,0.04379153]
[1747779068402,0.03886788,167.67,167.66,5.9621]
[1747779071102,0.03886788,167.67,167.66,101.4421]
[1747779071914,0.03886788,167.67,167.63,0.04379153]
[1747779072411,0.03886788,167.67,167.59,1.32510509]
[1747779072909,5.9642,167.6,167.59,1.32510509]
[1747779073403,0.03998125,167.61,167.56,95.48]
[1747779073601,0.03998125,167.61,167.55,2.62371746]
[1747779074003,2.76775774,167.6,167.55,2.62371746]
[1747779074206,95.48,167.6,167.55,2.62371746]
[1747779074401,95.48,167.6,167.5,610.72]
[1747779074601,0.04045145,167.57,167.5,610.72]
[1747779074809,0.04045145,167.57,167.53,5.9666]
[1747779075608,0.04045145,167.57,167.54,5.9661]
[1747779076910,0.04045145,167.57,167.55,5.9657]
[1747779077208,6.00575145,167.57,167.5,610.72]
[1747779077509,0.04045145,167.57,167.52,5.967]
[1747779077707,0.04045145,167.57,167.5,95.48]
[1747779077904,5.9657,167.56,167.46,95.52]
[1747779078103,0.04045639,167.53,167.46,95.52]
[1747779079611,0.04045639,167.53,167.52,5.9671]
[1747779083310,95.26,167.62,167.56,5.9655]
[1747779083512,5.9645,167.6,167.56,5.9655]
[1747779083810,5.9645,167.6,167.5,95.52]
[1747779084017,95.26,167.62,167.57,5.9653]
[1747779084208,5.964,167.61,167.5,95.52]
[1747779084405,0.03907888,167.58,167.57,5.9653]
[1747779085416,0.03907888,167.58,167.54,0.04094403]
[1747779085820,95.31907888,167.58,167.54,0.04094403]
[1747779086618,101.28427888,167.58,167.55,5.9657]
[1747779086819,95.31907888,167.58,167.54,0.04094403]
[1747779087015,1.9295,167.57,167.54,0.04094403]
[1747779087221,5.9659,167.56,167.54,0.04094403]
[1747779087419,1.9295,167.57,167.54,0.04094403]
[1747779087719,1.9295,167.57,167.46,95.28]
[1747779087918,2.0795,167.56,167.46,95.28]
[1747779088221,5.9661,167.55,167.52,5.967]
[1747779088416,95.28,167.54,167.46,95.28]
[1747779088914,0.03793773,167.52,167.46,95.28]
[1747779089618,0.03793773,167.52,167.5,5.9675]
[1747779090416,0.03793773,167.52,167.49,5.968]
[1747779090622,0.03793773,167.52,167.45,167.63650316]
[1747779091021,6.00513773,167.52,167.49,5.9679]
[1747779091429,0.03793773,167.52,167.49,5.9679]
[1747779091622,0.03793773,167.52,167.5,5.9678]
[1747779092430,0.03793773,167.52,167.49,5.968]
[1747779092431,6.00503773,167.52,167.49,5.968]
[1747779092622,0.03793773,167.52,167.45,167.63650316]
[1747779092823,5.9675,167.51,167.48,5.9684]
[1747779093221,0.03793773,167.52,167.45,167.63650316]
[1747779093420,0.03793773,167.52,167.46,5.9692]
[1747779093730,0.03793773,167.52,167.38,13.09881683]
[1747779093928,0.03806368,167.47,167.46,5.9692]
[1747779094223,0.03996104,167.48,167.39,95.3]
[1747779094631,6.00866104,167.48,167.39,95.3]
[1747779095123,6.00866104,167.48,167.44,5.9696]
[1747779095728,0.03996104,167.48,167.39,95.3]
[1747779096424,0.03996104,167.48,167.35,12.25141683]
[1747779096425,0.03996104,167.48,167.36,95.3]
[1747779096625,0.0439467,167.44,167.36,95.3]
[1747779096819,0.0439467,167.44,167.41,5.9708]
[1747779097121,0.0439467,167.44,167.36,95.3]
[1747779097328,0.0439467,167.44,167.43,5.9703]
[1747779099038,97.229,167.53,167.49,5.9678]
[1747779099419,103.1958,167.53,167.49,5.9678]
[1747779099821,103.1958,167.53,167.48,5.9684]
[1747779100025,0.04423513,167.52,167.49,0.04508108]
[1747779100228,0.04423513,167.52,167.45,5.9694]
[1747779100426,97.229,167.53,167.45,5.9694]
[1747779100630,5.9682,167.49,167.41,95.32]
[1747779100832,5.9682,167.49,167.44,5.9696]
[1747779101134,5.9682,167.49,167.41,95.32]
[1747779101326,0.04521451,167.48,167.41,95.32]
[1747779102030,0.04521451,167.48,167.38,10.24141683]
[1747779102233,0.04521451,167.48,167.4,95.32]
[1747779102627,5.9691,167.47,167.4,95.32]
[1747779103033,7.96651451,167.48,167.44,5.9699]
[1747779103725,1.99791451,167.48,167.4,95.32]
[1747779104134,0.04521451,167.48,167.42,10.24141683]
[1747779104635,0.04521451,167.48,167.47,5.9688]
[1747779106736,0.04521451,167.48,167.45,95.34]
[1747779107030,0.04521451,167.48,167.37,1.9841]
[1747779107226,0.04346263,167.44,167.43,5.9703]
[1747779107431,0.04548846,167.45,167.38,95.34]
[1747779108131,0.04548846,167.45,167.44,5.9699]
[1747779108634,8.846e-05,167.45,167.44,5.9699]
[1747779108933,2.0873,167.57,167.42,95.34]
[1747779109138,97.4273,167.57,167.43,2.9087]
[1747779109531,97.4273,167.57,167.44,2.0611]
[1747779109735,0.04067757,167.52,167.48,0.04266251]
[1747779109927,0.04067757,167.52,167.51,5.9672]
[1747779113534,0.04067757,167.52,167.5,5.9675]
[1747779113839,0.04067757,167.52,167.48,0.04266251]
[1747779114037,5.9675,167.51,167.48,0.04266251]
[1747779114334,0.04067757,167.52,167.48,0.04266251]
[1747779115239,6.00777757,167.52,167.48,6.01096251]
[1747779116437,5.9674,167.51,167.48,0.04266251]
[1747779116736,0.04067757,167.52,167.48,0.04266251]
[1747779116938,5.9681,167.49,167.48,0.04266251]
[1747779117939,2.03857757,167.52,167.41,97.64]
[1747779118236,2.76978458,167.51,167.43,5.97]
[1747779118441,2.76978458,167.5,167.41,97.64]
[1747779118638,1.9979,167.52,167.41,97.64]
[1747779118839,0.03903787,167.48,167.41,97.64]
[1747779120228,0.03903787,167.48,167.41,103.6109]
[1747779120432,0.03903787,167.48,167.41,5.9709]
[1747779120738,0.03903787,167.48,167.38,97.64]
[1747779120933,5.9706,167.42,167.39,5.9714]
[1747779122342,5.9706,167.42,167.38,103.6119]
[1747779122537,97.69996388,167.45,167.35,97.66]
[1747779122750,0.04496577,167.42,167.35,97.66]
[1747779123144,2.76870294,167.41,167.35,97.66]
[1747779123440,5.9735,167.34,167.33,1.75974896]
[1747779123650,0.04195721,167.35,167.33,1.75974896]
[1747779124841,0.04195721,167.35,167.26,97.66]
[1747779125344,0.04195721,167.35,167.34,5.9735]
[1747779126555,99.7677,167.41,167.37,5.9722]
[1747779126841,97.68,167.43,167.35,97.68]
[1747779127551,0.03872487,167.41,167.37,0.04377074]
[1747779127845,0.03872487,167.41,167.38,5.9718]
[1747779128051,0.03872487,167.41,167.37,0.04377074]
[1747779128349,0.03872487,167.41,167.38,5.972]
[1747779128549,0.03872487,167.41,167.37,0.04377074]
[1747779128946,0.03872487,167.41,167.38,5.9718]
[1747779129249,0.03872487,167.41,167.37,0.04377074]
[1747779130150,5.9719,167.39,167.37,0.04377074]
[1747779130851,5.9714,167.4,167.37,0.04377074]
[1747779131059,0.03872487,167.41,167.37,0.04377074]
[1747779131351,0.03872487,167.41,167.38,5.972]
[1747779131552,0.03872487,167.41,167.37,0.04377074]
[1747779132357,6.00972487,167.41,167.37,6.01597074]
[1747779133855,0.03872487,167.41,167.37,0.04377074]
[1747779135554,0.03872487,167.41,167.39,5.9714]
[1747779135954,0.03872487,167.41,167.37,0.04377074]
[1747779136153,0.03872487,167.41,167.39,5.9716]
[1747779136456,0.03872487,167.41,167.37,0.04377074]
[1747779136661,0.03872487,167.41,167.39,5.9714]
[1747779136861,0.03872487,167.41,167.37,0.04377074]
[1747779139167,5.972,167.38,167.37,0.04377074]
[1747779141068,97.7,167.39,167.29,97.7]
[1747779141367,97.7,167.39,167.27,1.32416942]
[1747779141568,97.7,167.39,167.27,7.29996942]
[1747779141771,10.24141683,167.33,167.25,1.75974896]
[1747779142067,0.0377546,167.31,167.19,1.75974896]
[1747779142270,5.9775,167.23,167.19,7.73854896]
[1747779142571,6.01558359,167.23,167.19,1.75974896]
[1747779142765,0.03808359,167.23,167.19,1.75974896]
[1747779143463,6.01558359,167.23,167.19,7.73854896]
[1747779143766,0.03808359,167.23,167.19,7.73854896]
[1747779143975,0.03808359,167.23,167.2,5.9784]
[1747779144172,0.03808359,167.23,167.2,96.98]
[1747779145172,0.03808359,167.23,167.21,5.978]
[1747779147771,0.03808359,167.23,167.15,97.0]
[1747779148073,0.04028273,167.21,167.15,97.0]
[1747779148276,0.04028273,167.21,167.19,5.9786]
[1747779148472,0.04028273,167.21,167.19,102.9786]
[1747779151181,0.04028273,167.21,167.2,5.9785]
[1747779151378,0.04028273,167.21,167.19,97.0]
[1747779152577,0.04028273,167.21,167.19,102.9788]
[1747779152976,0.04028273,167.21,167.19,97.0]
[1747779153172,5.9761,167.27,167.22,5.9775]
[1747779153669,4.0975,167.31,167.23,97.02]
[1747779153874,4.0975,167.31,167.24,5.9768]
[1747779154074,0.03874803,167.29,167.26,0.04129515]
[1747779154575,6.01424803,167.29,167.26,0.04129515]
[1747779155474,5.9756,167.28,167.26,0.04129515]
[1747779156481,5.976,167.27,167.26,0.04129515]
[1747779156879,0.03874803,167.29,167.2,97.02]
[1747779157074,1.9137,167.28,167.19,97.02]
[1747779157279,5.9773,167.24,167.2,5.9783]
[1747779157477,1.9137,167.28,167.19,97.02]
[1747779158075,6.02095392,167.25,167.21,5.9779]
[1747779158482,5.977,167.24,167.21,5.9779]
[1747779158982,5.977,167.24,167.2,5.9784]
[1747779159779,0.04395392,167.25,167.19,97.02]
[1747779159988,0.04395392,167.25,167.16,97.04]
[1747779160283,0.04190605,167.22,167.16,97.04]
[1747779161374,0.04190605,167.22,167.13,97.04]
[1747779161684,5.9798,167.17,167.14,5.9804]
[1747779161984,5.9798,167.17,167.13,97.04]
[1747779161985,0.04066328,167.17,167.13,97.04]
[1747779162378,5.9799,167.16,167.13,103.0208]
[1747779162687,0.04066328,167.17,167.13,97.04]
[1747779163285,6.02036328,167.17,167.14,5.9806]
[1747779163676,5.98,167.16,167.13,103.0209]
[1747779164086,0.04066328,167.17,167.13,97.04]
[1747779164284,0.04066328,167.17,167.14,5.9805]
[1747779164883,0.04066328,167.17,167.13,97.04]
[1747779166487,5.9802,167.16,167.13,97.04]
[1747779167481,5.9806,167.14,167.07,5.6571]
[1747779167675,0.03840484,167.12,167.07,5.6571]
[1747779167883,0.0437639,167.11,167.1,5.982]
[1747779168077,0.04306424,167.12,167.07,5.6571]
[1747779168281,0.0448447,167.11,167.07,5.6571]
[1747779168479,0.04343022,167.11,167.07,5.6571]
[1747779168680,0.04343022,167.11,167.06,97.06]
[1747779168984,0.04343022,167.11,167.09,5.9824]
[1747779169293,0.04343022,167.11,167.06,97.06]
[1747779169589,0.04343022,167.11,167.08,5.9825]
[1747779169787,0.04343022,167.11,167.06,97.06]
[1747779171187,0.04343022,167.11,167.08,5.9825]
[1747779171489,0.04343022,167.11,167.06,97.06]
[1747779172191,99.0047,167.21,167.07,10.28339315]
[1747779172489,99.0047,167.21,167.07,10.24141683]
[1747779172688,5.979,167.19,167.15,5.9801]
[1747779172994,5.979,167.19,167.06,97.06]
[1747779172995,99.0047,167.21,167.14,97.08]
[1747779173189,5.9796,167.17,167.16,0.04054647]
[1747779173385,0.04145647,167.18,167.15,0.04434074]
[1747779173582,0.04601289,167.18,167.15,0.04119376]
[1747779173782,5.9796,167.17,167.15,0.04119376]
[1747779174389,5.9799,167.16,167.15,0.04119376]
[1747779176895,0.04601289,167.18,167.15,0.04119376]
[1747779177991,0.04601289,167.18,167.15,6.02109376]
[1747779178691,0.04601289,167.18,167.16,5.9799]
[1747779179983,0.04601289,167.18,167.17,5.9795]
[1747779180893,0.04601289,167.18,167.15,0.04119376]
[1747779181981,5.9796,167.17,167.15,0.04119376]
[1747779182186,0.04601289,167.18,167.15,0.04119376]
[1747779183988,5.9799,167.16,167.15,0.04119376]
[1747779192591,2.0969,167.17,167.15,0.04119376]
[1747779192796,0.04601289,167.18,167.15,0.04119376]
[1747779193204,0.04601289,167.18,167.16,5.9799]
[1747779193700,0.04601289,167.18,167.15,0.04119376]
[1747779194009,0.04601289,167.18,167.15,6.02129376]
[1747779194201,0.04601289,167.18,167.15,0.04119376]
[1747779194399,0.04601289,167.18,167.0,541.94161753]
[1747779194599,1.998,167.2,167.05,6.43975787]
[1747779194907,2.76437193,167.19,167.09,5.9823]
[1747779195205,5.981,167.13,167.04,104.11774896]
[1747779195405,0.04109231,167.1,167.08,5.9826]
[1747779195698,1.998,167.2,167.09,96.68]
[1747779195699,0.0383231,167.11,167.09,96.68]
[1747779195904,0.03821182,167.12,167.09,96.68]
[1747779196106,0.04391606,167.12,167.09,96.68]
[1747779196409,6.02541606,167.12,167.09,102.6623]
[1747779196903,0.04391606,167.12,167.09,102.6623]
[1747779197508,0.04391606,167.12,167.1,5.982]
[1747779197695,0.04391606,167.12,167.09,96.68]
[1747779198100,0.04391606,167.12,167.1,5.9818]